fUSD/lending_fUSD_20240318
["ID","MTS","AMOUNT","RATE_DAILY","PERIOD"]
[319416519,1710724263627,-1039.0,0.00023119,2]
[319416520,1710724263637,-332.0,0.00023119,2]
[319416521,1710724263646,-1010.2,0.0002321,2]
[319416522,1710724263655,-150.0,0.00023216,2]
[319416523,1710724263665,-300.0,0.0002322,2]
[319416524,1710724263675,-300.0,0.0002322,2]
[319416525,1710724263684,-300.0,0.0002322,2]
[319416526,1710724263694,-314.95171,0.00023288,2]
[319416527,1710724263704,-155.0,0.00023288,2]
[319416528,1710724263713,-154.12575019,0.00023335,2]
[319416529,1710724263723,-962.0,0.00023357,2]
[319416530,1710724263732,-4502.0,0.00023357,2]
[319416531,1710724263742,-1039.0,0.00023357,2]
[319416532,1710724263751,-332.0,0.00023357,2]
[319416533,1710724263759,-3683.42853246,0.0002354,2]
[319416534,1710724263768,-154.12575019,0.0002358,2]
[319416535,1710724263777,-962.0,0.00023596,2]
[319416536,1710724263788,-4502.0,0.00023596,2]
[319416537,1710724263797,-1039.0,0.00023596,2]
[319416538,1710724263806,-332.0,0.00023596,2]
[319416539,1710724263815,-152.39021987,0.00023641,2]
[319416540,1710724263825,-154.12575019,0.00023643,2]
[319416541,1710724263834,-150.0,0.0002372,2]
[319416542,1710724263844,-2000.0,0.000238,2]
[319416543,1710724263853,-3000.0,0.000238,2]
[319416544,1710724263861,-962.0,0.00023834,2]
[319416545,1710724263874,-721.30643341,0.00023834,2]
[319416546,1710724263883,-4502.0,0.00023834,2]
[319416547,1710724263892,-1039.0,0.00023834,2]
[319416548,1710724263902,-332.0,0.00023834,2]
[319416549,1710724263911,-150.80584847,0.00023845,2]
[319416550,1710724263921,-1400.0,0.00023983,2]
[319416551,1710724263930,-550.0,0.00024,25]
[319416552,1710724263940,-155.0,0.00024,2]
[319416553,1710724263949,-500.0,0.00024,2]
[319416554,1710724263958,-586.06,0.00024024,2]
[319416555,1710724263968,-150.80584847,0.0002404,2]
[319416556,1710724263977,-962.0,0.00024072,2]
[319416557,1710724263985,-4502.0,0.00024072,2]
[319416558,1710724263994,-1039.0,0.00024072,2]
[319416559,1710724264004,-332.0,0.00024072,2]
[319416560,1710724264013,-314.95171,0.0002411,2]
[319416561,1710724264022,-922.44,0.0002417,2]
[319416562,1710724264031,-408.41,0.00024181,2]
[319416563,1710724264040,-375.97,0.00024181,2]
[319416564,1710724264049,-408.41,0.00024181,2]
[319416565,1710724264058,-408.41,0.00024181,2]
[319416566,1710724264067,-408.41,0.00024181,2]
[319416567,1710724264075,-408.41,0.00024181,2]
[319416568,1710724264084,-150.0,0.00024225,2]
[319416569,1710724264093,-150.0,0.00024307,2]
[319416570,1710724264102,-185.87,0.00024307,2]
[319416571,1710724264111,-150.0,0.00024307,2]
[319416572,1710724264121,-346.78,0.00024307,2]
[319416573,1710724264130,-150.0,0.00024307,2]
[319416574,1710724264139,-962.0,0.00024311,2]
[319416575,1710724264148,-4502.0,0.00024311,2]
[319416576,1710724264158,-1039.0,0.00024311,2]
[319416577,1710724264167,-332.0,0.00024311,2]
[319416578,1710724264177,-346.78,0.00024318,2]
[319416579,1710724264190,-516.7,0.00024318,2]
[319416580,1710724264199,-414.91,0.00024318,2]
[319416581,1710724264209,-150.0,0.00024318,2]
[319416582,1710724264219,-150.0,0.00024318,2]
[319416583,1710724264229,-300.0,0.00024318,2]
[319416584,1710724264239,-516.7,0.00024318,2]
[319416585,1710724264248,-414.91,0.00024318,2]
[319416586,1710724264257,-150.0,0.00024318,2]
[319416587,1710724264266,-150.0,0.00024318,2]
[319416588,1710724264277,-414.91,0.00024318,2]
[319416589,1710724264287,-516.7,0.00024318,2]
[319416590,1710724264297,-150.0,0.00024318,2]
[319416591,1710724264306,-150.0,0.00024318,2]
[319416592,1710724264317,-414.91,0.00024318,2]
[319416593,1710724264326,-516.7,0.00024318,2]
[319416594,1710724264335,-150.0,0.00024318,2]
[319416595,1710724264344,-150.0,0.00024318,2]
[319416596,1710724264353,-516.7,0.00024318,2]
[319416597,1710724264363,-414.91,0.00024318,2]
[319416598,1710724264373,-150.0,0.00024318,2]
[319416599,1710724264382,-369.0,0.00024328,2]
[319416600,1710724264390,-1010.2,0.0002442,2]
[319416601,1710724264399,-962.0,0.00024549,2]
[319416602,1710724264409,-4502.0,0.00024549,2]
[319416603,1710724264418,-1039.0,0.00024549,2]
[319416604,1710724264428,-332.0,0.00024549,2]
[319416605,1710724264438,-307.29,0.00024581,2]
[319416606,1710724264448,-2222.5,0.00024658,10]
[319416607,1710724264457,-155.0,0.00024658,2]
[319416608,1710724264467,-154.12575019,0.0002469,2]
[319416609,1710724264476,-150.0,0.0002473,2]
[319416610,1710724264485,-154.12575019,0.00024787,2]
[319416611,1710724264495,-378.0,0.00024932,2]
[319416612,1710724264504,-550.0,0.00025,25]
[319416613,1710724264513,-1954.51463588,0.00025,10]
[319416614,1710724264523,-155.0,0.00025,2]
[319416615,1710724264532,-200.00095302,0.00025,2]
[319416616,1710724264542,-10236.0,0.00025,2]
[319416617,1710724264551,-2000.0,0.00025,2]
[319416618,1710724264561,-1000.0,0.00025,3]
[319416619,1710724264570,-155.0,0.00025,2]
[319416620,1710724264580,-3937.78926944,0.00025,2]
[319416621,1710724264589,-378.0,0.00025,2]
[319416622,1710724264598,-830.2788673,0.00025036,2]
[319416623,1710724264608,-150.0,0.00025129,2]
[319416624,1710724264619,-166.66666666,0.00025131,2]
[319416625,1710724264629,-150.0,0.0002514,2]
[319416626,1710724264638,-150.0,0.0002514,2]
[319416627,1710724264647,-150.0,0.0002514,2]
[319416628,1710724264657,-150.0,0.0002514,2]
[319416629,1710724264666,-150.0,0.0002514,2]
[319416630,1710724264675,-279.35,0.0002514,2]
[319416631,1710724264685,-414.91,0.0002514,2]
[319416632,1710724264695,-516.7,0.0002514,2]
[319416633,1710724264705,-414.91,0.0002514,2]
[319416634,1710724264714,-150.0,0.0002514,2]
[319416635,1710724264723,-516.7,0.0002514,2]
[319416636,1710724264732,-150.0,0.0002514,2]
[319416637,1710724264742,-516.7,0.0002514,2]
[319416638,1710724264751,-414.91,0.0002514,2]
[319416639,1710724264760,-150.0,0.0002514,2]
[319416640,1710724264770,-516.7,0.0002514,2]
[319416641,1710724264780,-414.91,0.0002514,2]
[319416642,1710724264789,-150.0,0.0002514,2]
[319416643,1710724264798,-516.7,0.0002514,2]
[319416644,1710724264808,-414.91,0.0002514,2]
[319416645,1710724264817,-516.7,0.0002514,2]
[319416646,1710724264827,-414.91,0.0002514,2]
[319416647,1710724264836,-150.0,0.0002514,2]
[319416648,1710724264845,-516.7,0.0002514,2]
[319416649,1710724264854,-414.91,0.0002514,2]
[319416650,1710724264863,-516.7,0.0002514,2]
[319416651,1710724264874,-150.0,0.0002514,2]
[319416652,1710724264883,-150.0,0.0002514,2]
[319416653,1710724264892,-516.7,0.0002514,2]
[319416654,1710724264901,-414.91,0.0002514,2]
[319416655,1710724264911,-150.0,0.0002514,2]
[319416656,1710724264920,-235.5,0.0002514,2]
[319416657,1710724264929,-414.91,0.0002514,2]
[319416658,1710724264938,-408.41,0.0002514,2]
[319416659,1710724264948,-150.0,0.0002514,2]
[319416660,1710724264957,-415.86,0.0002514,2]
[319416661,1710724264966,-381.96,0.0002514,2]
[319416662,1710724264976,-408.41,0.0002514,2]
[319416663,1710724264985,-408.41,0.0002514,2]
[319416664,1710724264994,-408.41,0.0002514,2]
[319416665,1710724265003,-811.63,0.0002514,2]
[319416666,1710724265013,-1021.84,0.00025158,2]
[319416667,1710724265023,-500.0,0.00025158,2]
[319416668,1710724265032,-378.0,0.00025205,2]
[319416669,1710724265042,-150.0,0.00025234,2]
[319416670,1710724265052,-154.12575019,0.00025387,2]
[319416671,1710724265061,-3000.0,0.00025451,2]
[319416672,1710724265071,-378.0,0.00025479,2]
[319416673,1710724265080,-453.0,0.00025488,2]
[319416674,1710724265090,-154.12575019,0.00025521,2]
[319416675,1710724265100,-4762.0,0.00025528,2]
[319416676,1710724265111,-5668.0,0.00025528,2]
[319416677,1710724265124,-42878.0,0.00025528,2]
[319416678,1710724265134,-1044.0,0.00025528,2]
[319416679,1710724265143,-1010.2,0.0002563,2]
[319416680,1710724265153,-150.0,0.00025739,2]
[319416681,1710724265164,-1117.426854,0.0002575,2]
[319416682,1710724265174,-378.0,0.00025753,2]
[319416683,1710724265184,-378.0,0.0002589,2]
[319416684,1710724265193,-154.12575019,0.00025976,2]
[319416685,1710724265204,-700.0,0.00025999,10]
[319416686,1710724265214,-450.0,0.00026,27]
[319416687,1710724265224,-2626.47,0.00026,10]
[319416688,1710724265234,-867.54380044,0.00026,2]
[319416689,1710724265245,-150.0,0.00026023,2]
[319416690,1710724265255,-150.0,0.00026023,2]
[319416691,1710724265265,-150.0,0.00026023,2]
[319416692,1710724265276,-150.0,0.00026023,2]
[319416693,1710724265287,-150.0,0.00026023,2]
[319416694,1710724265298,-1378.0,0.00026023,2]
[319416695,1710724265308,-959.0,0.00026023,2]
[319416696,1710724265318,-2560.0,0.00026023,2]
[319416697,1710724265328,-536.0,0.00026023,2]
[319416698,1710724265338,-457.0,0.00026023,2]
[319416699,1710724265348,-1226.0,0.00026023,2]
[319416700,1710724265358,-1264.0,0.00026023,2]
[319416701,1710724265370,-278.0,0.00026023,2]
[319416702,1710724265489,-603.0,0.00026023,2]
[319416703,1710724265499,-1250.0,0.00026023,2]
[319416704,1710724265509,-432.0,0.00026023,2]
[319416705,1710724265519,-800.0,0.00026023,2]
[319416706,1710724265530,-3000.0,0.00026023,2]
[319416707,1710724265539,-1136.0,0.00026023,2]
[319416708,1710724265550,-357.0,0.00026023,2]
[319416709,1710724265559,-2419.0,0.00026023,2]
[319416710,1710724265569,-1458.0,0.00026023,2]
[319416711,1710724265579,-213.0,0.00026023,2]
[319416712,1710724265588,-1623.0,0.00026023,2]
[319416713,1710724265598,-155.0,0.00026028,2]
[319416714,1710724265608,-154.12575019,0.00026074,2]
[319416715,1710724265620,-150.0,0.00026244,2]
[319416716,1710724265630,-168.1836078,0.0002627,2]
[319416717,1710724265639,-2013.05017484,0.00026271,2]
[319416718,1710724265649,-420.60813128,0.00026271,2]
[319416719,1710724265659,-155.0,0.00026271,2]
[319416720,1710724265669,-658.26742004,0.00026271,2]
[319416721,1710724265678,-155.0,0.00026271,2]
[319416722,1710724265688,-231.71190815,0.00026271,2]
[319416723,1710724265698,-155.10407366,0.00026271,2]
[319416724,1710724265708,-195.17219106,0.00026271,2]
[319416725,1710724265717,-285.84614251,0.00026271,2]
[319416726,1710724265727,-155.36838312,0.00026271,2]
[319416727,1710724265737,-233.21588226,0.00026271,2]
[319416728,1710724265747,-5495.95327195,0.00026271,2]
[319416729,1710724265757,-165.85505905,0.00026271,2]
[319416730,1710724265767,-7110.1438431,0.00026271,2]
[319416731,1710724265776,-539.3942317,0.00026271,2]
[319416732,1710724265786,-516.69745094,0.00026271,2]
[319416733,1710724265796,-213.86765172,0.00026271,2]
[319416734,1710724265806,-328.61935951,0.00026271,2]
[319416735,1710724265816,-282.74052776,0.00026271,2]
[319416736,1710724265825,-23165.6544248,0.00026271,2]
[319416737,1710724265834,-376.36280355,0.00026271,2]
[319416738,1710724265844,-155.23121264,0.00026271,2]
[319416739,1710724265854,-155.2616472,0.00026271,2]
[319416740,1710724265863,-157.67083797,0.00026271,2]
[319416741,1710724265875,-272.1672878,0.00026271,2]
[319416742,1710724265885,-340.30709045,0.00026271,2]
[319416743,1710724265895,-155.0,0.00026272,2]
[319416744,1710724265905,-155.0,0.00026272,2]
[319416745,1710724265914,-160.47637377,0.00026272,2]
[319416746,1710724265924,-1021.84,0.00026273,2]
[319416747,1710724265935,-500.0,0.00026274,2]
[319416748,1710724265944,-147496.3026134,0.00026274,30]
[319416749,1710724265953,-4218.93966829,0.00026276,2]
[319416750,1710724265962,-764.56656224,0.00026276,7]
[319416751,1710724265972,-2000.0,0.00026276,2]
[319416752,1710724265981,-200.0,0.00026276,2]
[319416753,1710724265990,-2000.0,0.00026276,2]
[319416754,1710724266000,-200.0,0.00026276,2]
[319416755,1710724266010,-586.06,0.00026288,2]
[319416756,1710724266019,-154.12575019,0.00026293,2]
[319416757,1710724266029,-241655.9218717,0.00026392,2]
[319416758,1710724266038,-152.39021987,0.00026473,2]
[319416759,1710724266048,-14685.0,0.00026533,5]
[319416760,1710724266058,-2000.0,0.00026539,2]
[319416761,1710724266067,-200.0,0.00026539,2]
[319416762,1710724266077,-2000.0,0.00026539,2]
[319416763,1710724266087,-200.0,0.00026539,2]
[319416764,1710724266096,-3000.0,0.000266,2]
[319416765,1710724266106,-7259.0,0.000267,2]
[319416766,1710724266118,-558.0,0.00026704,2]
[319416767,1710724266128,-152.0,0.00026738,3]
[319416768,1710724266137,-154.52759483,0.00026744,2]
[319416769,1710724266147,-150.0,0.00026748,2]
[319416770,1710724266156,-2000.0,0.00026804,2]
[319416771,1710724266165,-200.0,0.00026804,2]
[319416772,1710724266175,-2000.0,0.00026804,2]
[319416773,1710724266186,-200.0,0.00026804,2]
[319416774,1710724266199,-151.12768755,0.00026828,2]
[319416775,1710724266208,-1010.2,0.0002684,2]
[319416776,1710724266218,-168.3221185,0.00026844,2]
[319416777,1710724266229,-1021.84,0.00026919,2]
[319416778,1710724266238,-400.0,0.0002697,2]
[319416779,1710724266248,-152.39021987,0.00026991,2]
[319416780,1710724266258,-10000.0,0.00027,2]
[319416781,1710724266268,-600.0,0.00027,28]
[319416782,1710724266278,-450.0,0.00027,27]
[319416783,1710724266288,-1050.0,0.00027,3]
[319416784,1710724266298,-146745.81728454,0.00027,2]
[319416785,1710724266307,-6226.7818021,0.00027,2]
[319416786,1710724266317,-1010.2,0.00027,2]
[319416787,1710724266327,-315.26,0.00027,2]
[319416788,1710724266337,-2000.0,0.00027072,2]
[319416789,1710724266347,-200.0,0.00027072,2]
[319416790,1710724266357,-2000.0,0.00027072,2]
[319416791,1710724266371,-200.0,0.00027072,2]
[319416792,1710724266381,-3410.56,0.00027123,2]
[319416793,1710724266392,-378.0,0.00027185,2]
[319416794,1710724266402,-392.0,0.00027185,2]
[319416795,1710724266412,-151.16603039,0.00027185,2]
[319416796,1710724266422,-500.0,0.00027187,2]
[319416797,1710724266433,-1400.32453439,0.000272,30]
[319416798,1710724266443,-150.0,0.00027253,2]
[319416799,1710724266454,-1021.84,0.00027296,2]
[319416800,1710724266463,-1021.84,0.00027296,2]
[319416801,1710724266473,-1021.84,0.00027296,2]
[319416802,1710724266482,-1021.84,0.00027296,2]
[319416803,1710724266491,-1021.88102448,0.00027296,2]
[319416804,1710724266501,-155.08176691,0.00027307,2]
[319416805,1710724266510,-2000.0,0.00027343,2]
[319416806,1710724266519,-200.0,0.00027343,2]
[319416807,1710724266527,-2000.0,0.00027343,2]
[319416808,1710724266537,-200.0,0.00027343,2]
[319416809,1710724266546,-300.0,0.00027397,5]
[319416810,1710724266555,-150.0,0.00027397,2]
[319416811,1710724266565,-500.0,0.00027397,2]
[319416812,1710724266574,-500.0,0.00027397,2]
[319416813,1710724266584,-500.0,0.00027397,2]
[319416814,1710724266594,-500.0,0.00027397,2]
[319416815,1710724266603,-500.0,0.00027397,2]
[319416816,1710724266613,-500.0,0.00027397,2]
[319416817,1710724266625,-500.0,0.00027397,2]
[319416818,1710724266635,-500.0,0.00027397,2]
[319416819,1710724266644,-500.0,0.00027397,2]
[319416820,1710724266654,-500.0,0.00027397,2]
[319416821,1710724266665,-500.0,0.00027397,2]
[319416822,1710724266674,-504.87676864,0.00027397,2]
[319416823,1710724266683,-554.89061024,0.00027397,30]
[319416824,1710724266693,-1107.1575,0.00027397,2]
[319416825,1710724266704,-680.52216483,0.00027397,30]
[319416826,1710724266714,-754.32224713,0.00027397,2]
[319416827,1710724266723,-510.0,0.00027397,120]
[319416828,1710724266733,-1000.0,0.00027397,2]
[319416829,1710724266742,-1000.0,0.00027397,2]
[319416830,1710724266752,-1000.0,0.00027397,2]
[319416831,1710724266762,-1000.0,0.00027397,2]
[319416832,1710724266771,-1000.0,0.00027397,2]
[319416833,1710724266781,-1000.0,0.00027397,2]
[319416834,1710724266791,-1000.0,0.00027397,2]
[319416835,1710724266801,-1000.0,0.00027397,2]
[319416836,1710724266811,-1000.0,0.00027397,2]
[319416837,1710724266820,-1000.0,0.00027397,2]
[319416838,1710724266829,-1000.0,0.00027397,2]
[319416839,1710724266839,-1000.0,0.00027397,2]
[319416840,1710724266848,-1000.0,0.00027397,2]
[319416841,1710724266858,-1000.0,0.00027397,2]
[319416842,1710724266868,-1000.0,0.00027397,2]
[319416843,1710724266877,-1000.0,0.00027397,2]
[319416844,1710724266886,-1000.0,0.00027397,2]
[319416845,1710724266895,-1000.0,0.00027397,2]
[319416846,1710724266905,-1000.0,0.00027397,2]
[319416847,1710724266914,-1000.0,0.00027397,2]
[319416848,1710724266924,-1000.0,0.00027397,2]
[319416849,1710724266934,-1000.0,0.00027397,2]
[319416850,1710724266943,-1000.0,0.00027397,2]
[319416851,1710724266953,-1000.0,0.00027397,2]
[319416852,1710724266961,-1000.0,0.00027397,2]
[319416853,1710724266970,-1000.0,0.00027397,2]
[319416854,1710724266979,-1000.0,0.00027397,2]
[319416855,1710724266989,-1000.0,0.00027397,2]
[319416856,1710724266998,-941.0,0.00027397,2]
[319416857,1710724267007,-79390.66,0.00027397,2]
[319416858,1710724267016,-2222.5,0.00027397,10]
[319416859,1710724267026,-24000.0,0.00027397,2]
[319416860,1710724267035,-15683.49,0.00027397,2]
[319416861,1710724267044,-155.0,0.00027398,2]
[319416862,1710724267053,-732.53777175,0.000274,2]
[319416863,1710724267063,-10000.0,0.000274,2]
[319416864,1710724267072,-2000.0,0.000274,2]
[319416865,1710724267081,-500.0,0.000274,2]
[319416866,1710724267090,-1000.0,0.000274,2]
[319416867,1710724267099,-200.0,0.000274,2]
[319416868,1710724267108,-6962.0,0.000274,2]
[319416869,1710724267118,-6751.05,0.000274,2]
[319416870,1710724267127,-6751.05,0.000274,2]
[319416871,1710724267136,-6751.05,0.000274,2]
[319416872,1710724267145,-6751.05,0.000274,2]
[319416873,1710724267154,-6751.05,0.000274,2]
[319416874,1710724267164,-152.3902199,0.00027499,2]
[319416875,1710724267173,-187.39822945,0.000275,2]
[319416876,1710724267183,-500.0,0.0002752,120]
[319416877,1710724267196,-177.02833877,0.00027624,2]
[319416878,1710724267206,-152.0,0.00027662,4]
[319416879,1710724267215,-510.0,0.00027671,120]
[319416880,1710724267225,-150.0,0.00027758,2]
[319416881,1710724267237,-362.00340041,0.00027874,2]
[319416882,1710724267246,-300.0,0.00027945,5]
[319416883,1710724267256,-150.0,0.00027945,2]
[319416884,1710724267266,-510.0,0.00027945,120]
[319416885,1710724267275,-1000.0,0.00027945,2]
[319416886,1710724267286,-686.0,0.00027978,2]
[319416887,1710724267296,-24403.81819403,0.00028,2]
[319416888,1710724267306,-155.0,0.00028,2]
[319416889,1710724267315,-488.07636388,0.00028,2]
[319416890,1710724267325,-600.0,0.00028,29]
[319416891,1710724267334,-904.76095874,0.00028,3]
[319416892,1710724267343,-1010.2,0.0002805,2]
[319416893,1710724267353,-315.26,0.00028065,2]
[319416894,1710724267362,-1010.2,0.0002821,2]
[319416895,1710724267374,-510.0,0.00028219,120]
[319416896,1710724267383,-150.0,0.00028262,2]
[319416897,1710724267393,-378.0,0.00028272,2]
[319416898,1710724267402,-500.0,0.00028376,2]
[319416899,1710724267412,-500.0,0.00028376,2]
[319416900,1710724267422,-500.0,0.00028376,2]
[319416901,1710724267431,-500.0,0.00028376,2]
[319416902,1710724267441,-500.0,0.00028376,2]
[319416903,1710724267451,-17819.66644727,0.000284,2]
[319416904,1710724267461,-378.0,0.00028479,2]
[319416905,1710724267471,-300.0,0.00028493,5]
[319416906,1710724267480,-150.0,0.00028493,2]
[319416907,1710724267490,-510.0,0.00028493,120]
[319416908,1710724267499,-3000.0,0.000285,2]
[319416909,1710724267509,-6479.03158741,0.000285,120]
[319416910,1710724267622,-4762.0,0.00028528,2]
[319416911,1710724267633,-5386.03,0.00028528,2]
[319416912,1710724267642,-37283.944,0.00028528,2]
[319416913,1710724267652,-1044.0,0.00028528,2]
[319416914,1710724267662,-586.06,0.00028552,2]
[319416915,1710724267672,-152.0,0.00028585,5]
[319416916,1710724267681,-160.44499246,0.00028591,3]
[319416917,1710724267691,-243.480741,0.00028591,7]
[319416918,1710724267702,-151.0,0.00028591,7]
[319416919,1710724267712,-30310.34577348,0.00028591,2]
[319416920,1710724267722,-30310.34577348,0.00028591,2]
[319416921,1710724267732,-30310.34577348,0.00028591,2]
[319416922,1710724267741,-30310.34577348,0.00028591,2]
[319416923,1710724267751,-151.30766298,0.00028605,2]
[319416924,1710724267760,-1200.0,0.00028644,11]
[319416925,1710724267770,-200.0,0.00028649,2]
[319416926,1710724267779,-200.0,0.00028649,2]
[319416927,1710724267789,-151.0,0.00028689,2]
[319416928,1710724267799,-151.0,0.000287,7]
[319416929,1710724267809,-152.37,0.000287,2]
[319416930,1710724267818,-152.37,0.000287,2]
[319416931,1710724267827,-152.37,0.000287,2]
[319416932,1710724267837,-152.37,0.000287,2]
[319416933,1710724267846,-152.37,0.000287,2]
[319416934,1710724267856,-152.37,0.000287,2]
[319416935,1710724267867,-152.37,0.000287,2]
[319416936,1710724267876,-152.37,0.000287,2]
[319416937,1710724267885,-152.37,0.000287,2]
[319416938,1710724267894,-9183.96,0.000287,2]
[319416939,1710724267904,-9183.96,0.000287,2]
[319416940,1710724267913,-9183.96,0.000287,2]
[319416941,1710724267923,-9183.96,0.000287,2]
[319416942,1710724267933,-9183.96,0.000287,2]
[319416943,1710724267943,-9183.96,0.000287,2]
[319416944,1710724267953,-9183.96,0.000287,2]
[319416945,1710724267963,-9183.96,0.000287,2]
[319416946,1710724267973,-9183.96,0.000287,2]
[319416947,1710724267983,-9183.96,0.000287,2]
[319416948,1710724267993,-9183.96,0.000287,2]
[319416949,1710724268003,-9183.96,0.000287,2]
[319416950,1710724268013,-9183.96,0.000287,2]
[319416951,1710724268022,-9183.96,0.000287,2]
[319416952,1710724268032,-9183.96,0.000287,2]
[319416953,1710724268042,-9183.96,0.000287,2]
[319416954,1710724268052,-9183.96,0.000287,2]
[319416955,1710724268061,-9183.96,0.000287,2]
[319416956,1710724268071,-9183.96,0.000287,2]
[319416957,1710724268081,-9183.96,0.000287,2]
[319416958,1710724268091,-151.0,0.000287,7]
[319416959,1710724268100,-151.0,0.000287,7]
[319416960,1710724268110,-151.0,0.000287,5]
[319416961,1710724268120,-285.205339,0.000287,7]
[319416962,1710724268130,-151.0,0.000287,7]
[319416963,1710724268140,-157.669481,0.000287,7]
[319416964,1710724268150,-157.669481,0.000287,7]
[319416965,1710724268159,-151.0,0.000287,7]
[319416966,1710724268170,-151.0,0.000287,7]
[319416967,1710724268179,-151.0,0.000287,7]
[319416968,1710724268193,-151.0,0.000287,7]
[319416969,1710724268203,-151.0,0.000287,7]
[319416970,1710724268213,-151.0,0.000287,7]
[319416971,1710724268223,-2214.315,0.00028767,2]
[319416972,1710724268234,-510.0,0.00028767,120]
[319416973,1710724268243,-150.0,0.00028767,2]
[319416974,1710724268253,-10898.6,0.00028767,3]
[319416975,1710724268263,-155.0,0.00028768,2]
[319416976,1710724268273,-50000.0,0.000288,2]
[319416977,1710724268284,-7234.49,0.000288,2]
[319416978,1710724268294,-7234.49,0.000288,2]
[319416979,1710724268304,-7234.49,0.000288,2]
[319416980,1710724268314,-151.0,0.000288,7]
[319416981,1710724268324,-151.0,0.000288,7]
[319416982,1710724268334,-830.2788673,0.00028814,2]
[319416983,1710724268344,-207517.7243705,0.0002886,2]
[319416984,1710724268353,-173379.5268694,0.0002886,2]
[319416985,1710724268363,-400.0,0.0002887,2]
[319416986,1710724268375,-151.0,0.0002887,7]
[319416987,1710724268386,-14998.2442689,0.0002887,2]
[319416988,1710724268396,-1226.1397469,0.0002887,2]
[319416989,1710724268407,-6126.4550014,0.0002887,2]
[319416990,1710724268417,-190.4673208,0.0002887,2]
[319416991,1710724268427,-264.55358288,0.00028879,2]
[319416992,1710724268437,-500.0,0.0002888,30]
[319416993,1710724268447,-21540.01146878,0.0002888,2]
[319416994,1710724268456,-1829712.83027989,0.0002888,2]
[319416995,1710724268807,-1885509.72900998,0.0002888,2]
[319416996,1710724268845,-331.99314566,0.0001863,2]
[319416997,1710724268858,-1660.50038139,0.0001863,2]
[319416998,1710724268878,-687.80647295,0.0001863,2]
[319416999,1710724268888,-21472.71029451,0.0002888,2]
[319417000,1710724268900,-1552.18591668,0.0002888,2]
[319417001,1710724268916,-552.59497166,0.0002888,2]
[319417002,1710724268936,-2920.69071821,0.0001863,2]
[319417003,1710724268950,-1502.85928179,0.0001863,2]
[319417004,1710724268960,-4244.11746212,0.0002888,2]
[319417005,1710724268971,-722.05347654,0.0002888,2]
[319417006,1710724269348,-2680.3,0.0001863,2]
[319417007,1710724269359,-2680.3,0.0001863,2]
[319417008,1710724269373,-4423.55,0.0001863,2]
[319417009,1710724269383,-2680.3,0.0001863,2]
[319417010,1710724269393,-4423.55,0.0001863,2]
[319417011,1710724269402,-2680.3,0.0001863,2]
[319417012,1710724269413,-4423.55,0.0001863,2]
[319417013,1710724269423,-2680.3,0.0001863,2]
[319417014,1710724269434,-4423.55,0.0001863,2]
[319417015,1710724269444,-2680.3,0.0001863,2]
[319417016,1710724269455,-4101.43042615,0.0001863,2]
[319417017,1710724269664,-320.08329269,0.0001863,2]
[319417018,1710724269679,-2.03628116,0.0001863,2]